fUSD/lending_fUSD_20240814
["ID","MTS","AMOUNT","RATE_DAILY","PERIOD"]
[334843102,1723607493058,-6138.85,0.00015068,2]
[334843103,1723607493068,-9972.45,0.00015068,2]
[334843104,1723607493077,-1022.55,0.00015068,2]
[334843105,1723607493087,-500.0,0.00015068,2]
[334843106,1723607493096,-809.32,0.00015068,2]
[334843107,1723607493106,-642.44,0.00015068,2]
[334843108,1723607493115,-500.0,0.00015068,2]
[334843109,1723607493128,-8165.91,0.00015068,2]
[334843110,1723607493138,-1024.38,0.00015068,2]
[334843111,1723607493148,-2852.39,0.00015068,2]
[334843112,1723607493158,-1105.51,0.00015068,2]
[334843113,1723607493168,-5016.05,0.00015068,2]
[334843114,1723607493179,-779.07,0.00015068,2]
[334843115,1723607493189,-2644.48,0.00015068,2]
[334843116,1723607493198,-4884.61,0.00015068,2]
[334843117,1723607493209,-5077.56,0.00015068,2]
[334843118,1723607493219,-500.0,0.00015068,2]
[334843119,1723607493228,-500.0,0.00015068,2]
[334843120,1723607493238,-500.0,0.00015068,2]
[334843121,1723607493268,-14387.22,0.00015068,2]
[334843122,1723607493278,-500.0,0.00015068,2]
[334843123,1723607493289,-6250.39,0.00015068,2]
[334843124,1723607493299,-1108.79,0.00015068,2]
[334843125,1723607493309,-700.09,0.00015068,2]
[334843126,1723607493319,-2760.64,0.00015068,2]
[334843127,1723607493329,-1348.31,0.00015068,2]
[334843128,1723607493339,-661.27,0.00015068,2]
[334843129,1723607493349,-860.11,0.00015068,2]
[334843130,1723607493359,-500.0,0.00015068,2]
[334843131,1723607493369,-844.08,0.00015068,2]
[334843132,1723607493607,-7897.51,0.00015068,2]
[334843133,1723607493617,-500.0,0.00015068,2]
[334843134,1723607493626,-6779.45,0.00015068,2]
[334843135,1723607493636,-2175.6,0.00015068,2]
[334843136,1723607493646,-1926.56,0.00015068,2]
[334843137,1723607493657,-500.0,0.00015068,2]
[334843138,1723607493667,-7867.37,0.00015068,2]
[334843139,1723607493677,-966.36,0.00015068,2]
[334843140,1723607493687,-2876.73,0.00015068,2]
[334843141,1723607493698,-20943.27,0.00015068,2]
[334843142,1723607493708,-500.0,0.00015068,2]
[334843143,1723607493719,-500.0,0.00015068,2]
[334843144,1723607493730,-772.3,0.00015068,2]
[334843145,1723607493740,-620.71,0.00015068,2]
[334843146,1723607493750,-500.0,0.00015068,2]
[334843147,1723607493760,-513.11,0.00015068,2]
[334843148,1723607493770,-656.4,0.00015068,2]
[334843149,1723607493779,-500.0,0.00015068,2]
[334843150,1723607493790,-818.88,0.00015068,2]
[334843151,1723607493800,-668.43,0.00015068,2]
[334843152,1723607493810,-500.0,0.00015068,2]
[334843153,1723607493819,-500.0,0.00015068,2]
[334843154,1723607493829,-3735.01,0.00015068,2]
[334843155,1723607493840,-500.0,0.00015068,2]
[334843156,1723607493849,-12745.7,0.00015068,2]
[334843157,1723607493859,-1936.62,0.00015068,2]
[334843158,1723607493868,-1883.94,0.00015068,2]
[334843159,1723607493878,-4612.26,0.00015068,2]
[334843160,1723607493887,-500.0,0.00015068,2]
[334843161,1723607493898,-1326.52,0.00015068,2]
[334843162,1723607493908,-1144.63,0.00015068,2]
[334843163,1723607493917,-435.68494909,0.00015068,2]
[334843164,1723607493927,-3537.48,0.00015068,2]
[334843165,1723607493936,-23504.48,0.00015068,2]
[334843166,1723607493946,-500.0,0.00015068,2]
[334843167,1723607493956,-500.0,0.00015068,2]
[334843168,1723607493966,-500.0,0.00015068,2]
[334843169,1723607493977,-3439.86,0.00015068,2]
[334843170,1723607493987,-500.0,0.00015068,2]
[334843171,1723607493996,-1749.84,0.00015068,2]
[334843172,1723607494006,-383.28927813,0.00015068,2]
[334843173,1723607494015,-1169.49,0.00015068,2]
[334843174,1723607494025,-506.14023449,0.00015068,2]
[334843175,1723607494035,-2025.45,0.00015068,2]
[334843176,1723607494045,-861.16,0.00015068,2]
[334843177,1723607494054,-500.0,0.00015068,2]
[334843178,1723607494064,-500.0,0.00015068,2]
[334843179,1723607494074,-500.0,0.00015068,2]
[334843180,1723607494083,-7943.45,0.00015068,2]
[334843181,1723607494092,-500.0,0.00015068,2]
[334843182,1723607494102,-960.52,0.00015068,2]
[334843183,1723607494111,-13270.11,0.00015068,2]
[334843184,1723607494121,-731.33,0.00015068,2]
[334843185,1723607494133,-1144.12,0.00015068,2]
[334843186,1723607494144,-789.39,0.00015068,2]
[334843187,1723607494154,-1646.88,0.00015068,2]
[334843188,1723607494163,-2551.38,0.00015068,2]
[334843189,1723607494174,-867.71,0.00015068,2]
[334843190,1723607494184,-5047.14,0.00015068,2]
[334843191,1723607494193,-1652.02,0.00015068,2]
[334843192,1723607494205,-3458.14,0.00015068,2]
[334843193,1723607494214,-500.0,0.00015068,2]
[334843194,1723607494224,-500.0,0.00015068,2]
[334843195,1723607494234,-853.31,0.00015068,2]
[334843196,1723607494244,-1116.13,0.00015068,2]
[334843197,1723607494253,-500.0,0.00015068,2]
[334843198,1723607494262,-500.0,0.00015068,2]
[334843199,1723607494272,-1828.19,0.00015068,2]
[334843200,1723607494282,-2030.16,0.00015068,2]
[334843201,1723607494292,-981.94,0.00015068,2]
[334843202,1723607494302,-816.29,0.00015068,2]
[334843203,1723607494312,-618.17,0.00015068,2]
[334843204,1723607494322,-500.0,0.00015068,2]
[334843205,1723607494333,-1632.54,0.00015068,2]
[334843206,1723607494344,-1877.65,0.00015068,2]
[334843207,1723607494354,-500.0,0.00015068,2]
[334843208,1723607494364,-500.0,0.00015068,2]
[334843209,1723607494374,-3032.3,0.00015068,2]
[334843210,1723607494383,-2405.3,0.00015068,2]
[334843211,1723607494395,-527.4,0.00015068,2]
[334843212,1723607494405,-3859.03,0.00015068,2]
[334843213,1723607494415,-2540.67,0.00015068,2]
[334843214,1723607494427,-511.84,0.00015068,2]
[334843215,1723607494437,-5924.29,0.00015068,2]
[334843216,1723607494447,-500.0,0.00015068,2]
[334843217,1723607494457,-500.0,0.00015068,2]
[334843218,1723607494468,-714.75,0.00015068,2]
[334843219,1723607494478,-2044.59,0.00015068,2]
[334843220,1723607494488,-14638.33,0.00015068,2]
[334843221,1723607494499,-2856.42,0.00015068,2]
[334843222,1723607494509,-500.0,0.00015068,2]
[334843223,1723607494519,-3003.74,0.00015068,2]
[334843224,1723607494529,-6014.88,0.00015068,2]
[334843225,1723607494540,-1266.06,0.00015068,2]
[334843226,1723607494551,-2719.38,0.00015068,2]
[334843227,1723607494562,-500.0,0.00015068,2]
[334843228,1723607494571,-7501.73,0.00015068,2]
[334843229,1723607494581,-852.97,0.00015068,2]
[334843230,1723607494591,-2454.88,0.00015068,2]
[334843231,1723607494601,-500.0,0.00015068,2]
[334843232,1723607494610,-1734.13,0.00015068,2]
[334843233,1723607494620,-1936.84,0.00015068,2]
[334843234,1723607494631,-500.0,0.00015068,2]
[334843235,1723607494641,-225.20041655,0.00015068,2]
[334843236,1723607494653,-500.0,0.00015068,2]
[334843237,1723607494662,-5008.91,0.00015068,2]
[334843238,1723607494672,-500.0,0.00015068,2]
[334843239,1723607494683,-500.0,0.00015068,2]
[334843240,1723607494694,-2136.98,0.00015068,2]
[334843241,1723607494704,-3579.33,0.00015068,2]
[334843242,1723607494714,-512.05,0.00015068,2]
[334843243,1723607494726,-3081.75,0.00015068,2]
[334843244,1723607494736,-1834.77,0.00015068,2]
[334843245,1723607494747,-3352.55,0.00015068,2]
[334843246,1723607494757,-2280.59,0.00015068,2]
[334843247,1723607494768,-2616.01,0.00015068,2]
[334843248,1723607494778,-500.0,0.00015068,2]
[334843249,1723607494789,-621.9,0.00015068,2]
[334843250,1723607494798,-4828.17,0.00015068,2]
[334843251,1723607494809,-500.0,0.00015068,2]
[334843252,1723607494819,-500.0,0.00015068,2]
[334843253,1723607494829,-676.11,0.00015068,2]
[334843254,1723607494840,-5350.32,0.00015068,2]
[334843255,1723607494851,-3896.23,0.00015068,2]
[334843256,1723607494862,-677.37,0.00015068,2]
[334843257,1723607494871,-7808.28,0.00015068,2]
[334843258,1723607494882,-500.0,0.00015068,2]
[334843259,1723607494892,-500.0,0.00015068,2]
[334843260,1723607494903,-1579.62,0.00015068,2]
[334843261,1723607494913,-2868.97,0.00015068,2]
[334843262,1723607494923,-670.24,0.00015068,2]
[334843263,1723607494933,-500.0,0.00015068,2]
[334843264,1723607494943,-2601.3,0.00015068,2]
[334843265,1723607494953,-2687.31,0.00015068,2]
[334843266,1723607494963,-2583.71,0.00015068,2]
[334843267,1723607494973,-3504.73,0.00015068,2]
[334843268,1723607494983,-500.0,0.00015068,2]
[334843269,1723607494993,-3882.13,0.00015068,2]
[334843270,1723607495003,-4107.19,0.00015068,2]
[334843271,1723607495013,-698.86,0.00015068,2]
[334843272,1723607495023,-500.0,0.00015068,2]
[334843273,1723607495033,-500.0,0.00015068,2]
[334843274,1723607495043,-2236.74,0.00015068,2]
[334843275,1723607495052,-381.16812283,0.00015068,2]
[334843276,1723607495062,-500.0,0.00015068,2]
[334843277,1723607495073,-786.88,0.00015068,2]
[334843278,1723607495084,-1100.89,0.00015068,2]
[334843279,1723607495094,-639.71,0.00015068,2]
[334843280,1723607495104,-500.0,0.00015068,2]
[334843281,1723607495114,-742.57,0.00015068,2]
[334843282,1723607495124,-500.0,0.00015068,2]
[334843283,1723607495136,-691.92,0.00015068,2]
[334843284,1723607495147,-1668.19,0.00015068,2]
[334843285,1723607495157,-500.0,0.00015068,2]
[334843286,1723607495166,-8906.01,0.00015068,2]
[334843287,1723607495176,-3096.07,0.00015068,2]
[334843288,1723607495187,-688.31,0.00015068,2]
[334843289,1723607495197,-505.7355548,0.00015068,2]
[334843290,1723607495208,-500.0,0.00015068,2]
[334843291,1723607495219,-521.01,0.00015068,2]
[334843292,1723607495229,-2079.25,0.00015068,2]
[334843293,1723607495239,-3714.26,0.00015068,2]
[334843294,1723607495249,-500.0,0.00015068,2]
[334843295,1723607495258,-500.0,0.00015068,2]
[334843296,1723607495267,-866.22,0.00015068,2]
[334843297,1723607495277,-1386.58,0.00015068,2]
[334843298,1723607495287,-7418.61,0.00015068,2]
[334843299,1723607495297,-500.0,0.00015068,2]
[334843300,1723607495308,-887.71,0.00015068,2]
[334843301,1723607495319,-500.0,0.00015068,2]
[334843302,1723607495328,-3269.23,0.00015068,2]
[334843303,1723607495338,-500.0,0.00015068,2]
[334843304,1723607495348,-1076.95,0.00015068,2]
[334843305,1723607495357,-707.28,0.00015068,2]
[334843306,1723607495367,-5659.08,0.00015068,2]
[334843307,1723607495377,-2929.81,0.00015068,2]
[334843308,1723607495388,-500.0,0.00015068,2]
[334843309,1723607495400,-2501.36,0.00015068,2]
[334843310,1723607495416,-1043.59,0.00015068,2]
[334843311,1723607495426,-500.0,0.00015068,2]
[334843312,1723607495435,-186.65620315,0.00015068,2]
[334843313,1723607495446,-500.0,0.00015068,2]
[334843314,1723607495456,-3153.8,0.00015068,2]
[334843315,1723607495466,-1497.14,0.00015068,2]
[334843316,1723607495476,-3648.88,0.00015068,2]
[334843317,1723607495486,-4369.58,0.00015068,2]
[334843318,1723607495497,-10558.66,0.00015068,2]
[334843319,1723607495508,-3991.69,0.00015068,2]
[334843320,1723607495517,-617.95,0.00015068,2]
[334843321,1723607495527,-543.63,0.00015068,2]
[334843322,1723607495537,-2141.4,0.00015068,2]
[334843323,1723607495547,-2617.38,0.00015068,2]
[334843324,1723607495557,-4898.32,0.00015068,2]
[334843325,1723607495567,-544.84,0.00015068,2]
[334843326,1723607495576,-1048.11,0.00015068,2]
[334843327,1723607495586,-2200.01,0.00015068,2]
[334843328,1723607495595,-500.0,0.00015068,2]
[334843329,1723607495605,-680.5,0.00015068,2]
[334843330,1723607495615,-525.19,0.00015068,2]
[334843331,1723607495624,-3069.08,0.00015068,2]
[334843332,1723607495634,-4095.44,0.00015068,2]
[334843333,1723607495644,-1101.33,0.00015068,2]
[334843334,1723607495655,-3093.95,0.00015068,2]
[334843335,1723607495665,-1974.21,0.00015068,2]
[334843336,1723607495675,-1153.12,0.00015068,2]
[334843337,1723607495685,-500.0,0.00015068,2]
[334843338,1723607495695,-1698.84,0.00015068,2]
[334843339,1723607495705,-1954.47,0.00015068,2]
[334843340,1723607495715,-500.0,0.00015068,2]
[334843341,1723607495724,-500.0,0.00015068,2]
[334843342,1723607495734,-500.0,0.00015068,2]
[334843343,1723607495743,-1008.04,0.00015068,2]
[334843344,1723607495752,-1831.82,0.00015068,2]
[334843345,1723607495763,-500.0,0.00015068,2]
[334843346,1723607495773,-2865.91,0.00015068,2]
[334843347,1723607495783,-15566.61,0.00015068,2]
[334843348,1723607495794,-5487.49,0.00015068,2]
[334843349,1723607495804,-500.0,0.00015068,2]
[334843350,1723607495814,-1963.56,0.00015068,2]
[334843351,1723607495824,-500.0,0.00015068,2]
[334843352,1723607495834,-686.68,0.00015068,2]
[334843353,1723607495844,-597.8,0.00015068,2]
[334843354,1723607495854,-500.0,0.00015068,2]
[334843355,1723607495863,-500.0,0.00015068,2]
[334843356,1723607495873,-1884.73,0.00015068,2]
[334843357,1723607495883,-500.0,0.00015068,2]
[334843358,1723607495892,-731.31,0.00015342,2]
[334843359,1723607495905,-500.0,0.00015342,2]
[334843360,1723607495916,-688.3,0.00015342,2]
[334843361,1723607495925,-508.14,0.00015342,2]
[334843362,1723607495935,-563.09,0.00015342,2]
[334843363,1723607495945,-500.0,0.00015342,2]
[334843364,1723607495955,-712.92,0.00015342,2]
[334843365,1723607495964,-448.46423494,0.00015342,2]
[334843366,1723607495974,-500.0,0.00015342,2]
[334843367,1723607495984,-500.0,0.00015342,2]
[334843368,1723607495994,-902.09,0.00015342,2]
[334843369,1723607496003,-500.0,0.00015342,2]
[334843370,1723607496013,-500.0,0.00015342,2]
[334843371,1723607496022,-701.14,0.00015342,2]
[334843372,1723607496032,-506.71,0.00015342,2]
[334843373,1723607496042,-1472.55,0.00015342,2]
[334843374,1723607496052,-935.07,0.00015342,2]
[334843375,1723607496062,-500.0,0.00015342,2]
[334843376,1723607496071,-751.76,0.00015342,2]
[334843377,1723607496081,-1022.73,0.00015342,2]
[334843378,1723607496091,-1673.07,0.00015342,2]
[334843379,1723607496100,-891.04,0.00015342,2]
[334843380,1723607496110,-622.07,0.00015342,2]
[334843381,1723607496119,-781.14,0.00015342,2]
[334843382,1723607496134,-500.0,0.00015342,2]
[334843383,1723607496143,-500.0,0.00015342,2]
[334843384,1723607496228,-500.0,0.00015342,2]
[334843385,1723607496238,-500.0,0.00015342,2]
[334843386,1723607496248,-500.0,0.00015342,2]
[334843387,1723607496258,-500.0,0.00015342,2]
[334843388,1723607496267,-500.0,0.00015342,2]
[334843389,1723607496276,-500.0,0.00015342,2]
[334843390,1723607496286,-547.55,0.00015342,2]
[334843391,1723607496295,-812.22,0.00015342,2]
[334843392,1723607496304,-500.0,0.00015342,2]
[334843393,1723607496314,-637.41,0.00015342,2]
[334843394,1723607496324,-1070.95,0.00015342,2]
[334843395,1723607496334,-1063.75,0.00015342,2]
[334843396,1723607496343,-727.22,0.00015342,2]
[334843397,1723607496353,-500.0,0.00015342,2]
[334843398,1723607496362,-500.0,0.00015342,2]
[334843399,1723607496372,-1698.66,0.00015342,2]
[334843400,1723607496382,-1060.55,0.00015342,2]
[334843401,1723607496393,-500.0,0.00015342,2]
[334843402,1723607496403,-500.0,0.00015342,2]
[334843403,1723607496413,-500.0,0.00015342,2]
[334843404,1723607496422,-500.0,0.00015342,2]
[334843405,1723607496432,-627.93812643,0.00015342,2]
[334843406,1723607496441,-799.52,0.00015342,2]
[334843407,1723607496450,-500.0,0.00015342,2]
[334843408,1723607496459,-500.0,0.00015342,2]
[334843409,1723607496469,-1647.39,0.00015342,2]
[334843410,1723607496479,-612.24,0.00015342,2]
[334843411,1723607496489,-500.0,0.00015342,2]
[334843412,1723607496498,-500.0,0.00015342,2]
[334843413,1723607496508,-500.0,0.00015342,2]
[334843414,1723607496517,-611.16,0.00015342,2]
[334843415,1723607496527,-500.0,0.00015342,2]
[334843416,1723607496537,-500.0,0.00015342,2]
[334843417,1723607496546,-1328.0,0.00015342,2]
[334843418,1723607496555,-1488.34,0.00015342,2]
[334843419,1723607496565,-609.98,0.00015342,2]
[334843420,1723607496574,-734.92,0.00015342,2]
[334843421,1723607496584,-518.07,0.00015342,2]
[334843422,1723607496593,-500.0,0.00015342,2]
[334843423,1723607496602,-1665.35,0.00015342,2]
[334843424,1723607496612,-500.0,0.00015342,2]
[334843425,1723607496622,-500.0,0.00015342,2]
[334843426,1723607496632,-1119.92,0.00015342,2]
[334843427,1723607496642,-331.88435343,0.00015342,2]
[334843428,1723607496653,-507.19,0.00015342,2]
[334843429,1723607496662,-1027.86,0.00015342,2]
[334843430,1723607496672,-500.0,0.00015342,2]
[334843431,1723607496682,-500.0,0.00015342,2]
[334843432,1723607496691,-500.0,0.00015342,2]
[334843433,1723607496700,-500.0,0.00015342,2]
[334843434,1723607496711,-1665.72,0.00015342,2]
[334843435,1723607496720,-583.56,0.00015342,2]
[334843436,1723607496730,-500.0,0.00015342,2]
[334843437,1723607496738,-543.84,0.00015342,2]
[334843438,1723607496747,-500.0,0.00015342,2]
[334843439,1723607496758,-703.07,0.00015342,2]
[334843440,1723607496767,-667.07,0.00015342,2]
[334843441,1723607496777,-731.8,0.00015342,2]
[334843442,1723607496786,-500.0,0.00015342,2]
[334843443,1723607496795,-500.0,0.00015342,2]
[334843444,1723607496804,-500.0,0.00015342,2]
[334843445,1723607496812,-654.55,0.00015342,2]
[334843446,1723607496822,-1474.25,0.00015342,2]
[334843447,1723607496831,-935.71,0.00015342,2]
[334843448,1723607496841,-500.0,0.00015342,2]
[334843449,1723607496850,-795.43,0.00015342,2]
[334843450,1723607496859,-500.0,0.00015342,2]
[334843451,1723607496869,-500.0,0.00015342,2]
[334843452,1723607496878,-1291.26,0.00015342,2]
[334843453,1723607496887,-151.377753,0.00015342,2]
[334843454,1723607496896,-500.0,0.00015342,2]
[334843455,1723607496905,-1621.49,0.00015342,2]
[334843456,1723607496914,-500.0,0.00015342,2]
[334843457,1723607496923,-553.51,0.00015342,2]
[334843458,1723607496932,-1600.49,0.00015342,2]
[334843459,1723607496942,-1806.84,0.00015342,2]
[334843460,1723607496951,-712.18,0.00015342,2]
[334843461,1723607496960,-152.506682,0.00015342,2]
[334843462,1723607496969,-521.1,0.00015342,2]
[334843463,1723607496979,-1895.99,0.00015342,2]
[334843464,1723607496988,-1723.01,0.00015342,2]
[334843465,1723607496997,-1877.59,0.00015342,2]
[334843466,1723607497006,-500.0,0.00015342,2]
[334843467,1723607497015,-500.0,0.00015342,2]
[334843468,1723607497024,-631.87,0.00015342,2]
[334843469,1723607497033,-843.0,0.00015342,2]
[334843470,1723607497043,-997.63,0.00015342,2]
[334843471,1723607497052,-500.0,0.00015342,2]
[334843472,1723607497062,-500.0,0.00015342,2]
[334843473,1723607497071,-500.0,0.00015342,2]
[334843474,1723607497080,-500.0,0.00015342,2]
[334843475,1723607497090,-500.0,0.00015342,2]
[334843476,1723607497099,-1073.69,0.00015342,2]
[334843477,1723607497108,-903.82,0.00015342,2]
[334843478,1723607497117,-1215.4,0.00015342,2]
[334843479,1723607497131,-674.42,0.00015342,2]
[334843480,1723607497140,-1082.37,0.00015342,2]
[334843481,1723607497150,-1982.45,0.00015342,2]
[334843482,1723607497159,-2111.74,0.00015342,2]
[334843483,1723607497169,-1233.9,0.00015342,2]
[334843484,1723607497178,-3815.52,0.00015342,2]
[334843485,1723607497188,-500.0,0.00015342,2]
[334843486,1723607497198,-848.59,0.00015342,2]
[334843487,1723607497208,-2334.24,0.00015342,2]
[334843488,1723607497217,-718.84,0.00015342,2]
[334843489,1723607497227,-500.0,0.00015342,2]
[334843490,1723607497236,-1454.45,0.00015342,2]
[334843491,1723607497245,-500.0,0.00015342,2]
[334843492,1723607497255,-996.86,0.00015342,2]
[334843493,1723607497265,-500.0,0.00015342,2]
[334843494,1723607497274,-1146.42,0.00015342,2]
[334843495,1723607497283,-1413.89,0.00015342,2]
[334843496,1723607497293,-1306.14,0.00015342,2]
[334843497,1723607497303,-500.0,0.00015342,2]
[334843498,1723607497313,-851.44,0.00015342,2]
[334843499,1723607497322,-2059.77,0.00015342,2]
[334843500,1723607497332,-1108.11,0.00015342,2]
[334843501,1723607497341,-592.2,0.00015342,2]
[334843502,1723607497351,-701.35,0.00015342,2]
[334843503,1723607497361,-863.81,0.00015342,2]
[334843504,1723607497371,-842.9,0.00015342,2]
[334843505,1723607497380,-1173.01,0.00015342,2]
[334843506,1723607497390,-500.0,0.00015342,2]
[334843507,1723607497402,-640.01,0.00015342,2]
[334843508,1723607497411,-500.0,0.00015342,2]
[334843509,1723607497421,-500.0,0.00015342,2]
[334843510,1723607497431,-1366.52,0.00015342,2]
[334843511,1723607497440,-1120.85,0.00015342,2]
[334843512,1723607497450,-500.0,0.00015342,2]
[334843513,1723607497460,-500.0,0.00015342,2]
[334843514,1723607497470,-666.14,0.00015342,2]
[334843515,1723607497480,-527.01,0.00015342,2]
[334843516,1723607497490,-1258.07,0.00015342,2]
[334843517,1723607497500,-1024.41,0.00015342,2]
[334843518,1723607497510,-500.0,0.00015342,2]
[334843519,1723607497520,-500.0,0.00015342,2]
[334843520,1723607497529,-2173.7,0.00015342,2]
[334843521,1723607497539,-1345.95,0.00015342,2]
[334843522,1723607497549,-984.97,0.00015342,2]
[334843523,1723607497559,-2468.39,0.00015342,2]
[334843524,1723607497569,-500.0,0.00015342,2]
[334843525,1723607497579,-500.0,0.00015342,2]
[334843526,1723607497589,-737.25,0.00015342,2]
[334843527,1723607497599,-990.66,0.00015342,2]
[334843528,1723607497609,-836.37,0.00015342,2]
[334843529,1723607497618,-652.06,0.00015342,2]
[334843530,1723607497628,-1124.45,0.00015342,2]
[334843531,1723607497637,-617.29,0.00015342,2]
[334843532,1723607497648,-657.84,0.00015342,2]
[334843533,1723607497657,-1513.15,0.00015342,2]
[334843534,1723607497667,-1128.09,0.00015342,2]
[334843535,1723607497676,-500.0,0.00015342,2]
[334843536,1723607497686,-1593.05,0.00015342,2]
[334843537,1723607497698,-1465.45,0.00015342,2]
[334843538,1723607497708,-512.37,0.00015342,2]
[334843539,1723607497719,-1433.68,0.00015342,2]
[334843540,1723607497730,-500.0,0.00015342,2]
[334843541,1723607497740,-1436.38,0.00015342,2]
[334843542,1723607497749,-566.62,0.00015342,2]
[334843543,1723607497759,-500.0,0.00015342,2]
[334843544,1723607497768,-980.27,0.00015342,2]
[334843545,1723607497778,-1757.62,0.00015342,2]
[334843546,1723607497787,-1090.22,0.00015342,2]
[334843547,1723607497797,-2446.57,0.00015342,2]
[334843548,1723607497806,-2344.16,0.00015342,2]
[334843549,1723607497815,-500.0,0.00015342,2]
[334843550,1723607497825,-500.0,0.00015342,2]
[334843551,1723607497835,-500.0,0.00015342,2]
[334843552,1723607497844,-1919.8,0.00015342,2]
[334843553,1723607497854,-850.36,0.00015342,2]
[334843554,1723607497864,-743.85,0.00015342,2]
[334843555,1723607497874,-500.0,0.00015342,2]
[334843556,1723607497884,-449.96115755,0.00015342,2]
[334843557,1723607498449,-335.18893297,0.00015342,2]
[334843558,1723607498459,-1050.1,0.00015342,2]
[334843559,1723607498470,-515.56383828,0.00015342,2]
[334843560,1723607498481,-454.7560712,0.00015342,2]
[334843561,1723607498490,-128.08036717,0.00015342,2]
[334843562,1723607498501,-585.26963283,0.00015342,2]
[334843563,1723607498510,-536.68,0.00015342,2]
[334843564,1723607498520,-654.34,0.00015342,2]
[334843565,1723607498529,-203.50440988,0.00015342,2]
[334843566,1723607498541,-296.49559012,0.00015342,2]
[334843567,1723607498550,-557.78,0.00015342,2]
[334843568,1723607498560,-500.0,0.00015342,2]
[334843569,1723607498569,-596.31051915,0.00015342,2]
[334843570,1723607498581,-142.22948085,0.00015342,2]
[334843571,1723607498590,-131.88574995,0.00015342,2]
[334843572,1723607498602,-368.11425005,0.00015342,2]
[334843573,1723607498612,-1185.16919553,0.00015342,2]
[334843574,1723607498623,-36.83080447,0.00015342,2]
[334843575,1723607498633,-1430.4666056,0.00015342,2]
[334843576,1723607498655,-1838.3833944,0.00015342,2]
[334843577,1723607498664,-1232.17,0.00015342,2]
[334843578,1723607498673,-401.53484895,0.00015342,2]
[334843579,1723607498684,-357.63515105,0.00015342,2]
[334843580,1723607498694,-1276.5,0.00015342,2]
[334843581,1723607498703,-1227.19,0.00015342,2]
[334843582,1723607498712,-660.75,0.00015342,2]
[334843583,1723607498721,-1099.44,0.00015342,2]
[334843584,1723607498731,-500.0,0.00015342,2]
[334843585,1723607498742,-2090.28,0.00015342,2]
[334843586,1723607498751,-500.0,0.00015342,2]
[334843587,1723607498763,-508.15,0.00015342,2]
[334843588,1723607498772,-500.0,0.00015342,2]
[334843589,1723607498782,-500.0,0.00015342,2]
[334843590,1723607498791,-793.09,0.00015342,2]
[334843591,1723607498802,-500.0,0.00015342,2]
[334843592,1723607498812,-500.0,0.00015342,2]
[334843593,1723607498821,-808.2,0.00015342,2]
[334843594,1723607498831,-1244.25,0.00015342,2]
[334843595,1723607498839,-1870.71,0.00015342,2]
[334843596,1723607498849,-500.0,0.00015342,2]
[334843597,1723607498859,-1020.02,0.00015342,2]
[334843598,1723607498868,-500.0,0.00015342,2]
[334843599,1723607498878,-1386.1,0.00015342,2]
[334843600,1723607498889,-732.86,0.00015342,2]
[334843601,1723607498900,-500.0,0.00015342,2]